[Event "Netanya Open 2019"]
[Site "Netanya"]
[Date "2019.06.24"]
[Round "2.20"]
[White "Gleizer, Mark"]
[Black "Khmelniker, Ilya"]
[Result "1/2-1/2"]
[ECO "D85"]
[WhiteElo "2173"]
[BlackElo "2483"]
[Annotator "ChessBase"]
[PlyCount "191"]
[EventDate "2019.06.23"]
[EventType "swiss"]
[EventCountry "ISR"]
[SourceTitle "playchess.com"]
[Source "ChessBase"]
[SourceQuality "1"]
[TimeControl "40/5400+30:1800+30"]

1. d4 {[%emt 0:00:00]} Nf6 {[%emt 0:09:22]} 2. c4 {[%emt 0:00:08]} g6 {[%emt 0:00:40]} 3. Nc3 {[%emt 0:00:06]} d5 {[%emt 0:00:05]} 4. cxd5 {[%emt 0:00:17]} Nxd5 {[%emt 0:00:05]} 5. Bd2 {[%emt 0:00:36]} Bg7 {[%emt 0:06:13]} 6. e4 {[%emt 0:01:52]} Nxc3 {[%emt 0:00:10]} 7. Bxc3 {[%emt 0:00:11]} O-O {[%emt 0:05:57]} 8. Qd2 {[%emt 0:02:00]} Qd6 {[%emt 0:03:54]} 9. Nf3 {[%emt 0:08:09]} Nc6 {[%emt 0:01:34]} 10. h3 {[%emt 0:03:19]} a6 {[%emt 0:13:34]} 11. Be2 {[%emt 0:02:09]} b5 {[%emt 0:01:42]} 12. a3 {[%emt 0:01:46]} Bb7 {[%emt 0:03:53]} 13. O-O {[%emt 0:01:24]} Rfe8 {[%emt 0:13:51]} 14. Rfd1 {[%emt 0:08:38]} e5 {[%emt 0:03:02]} 15. d5 {[%emt 0:08:25]} Nd4 {[%emt 0:00:19]} 16. Nxd4 {[%emt 0:00:44]} exd4 {[%emt 0:00:05]} 17. Bxd4 {[%emt 0:00:34]} Rxe4 {[%emt 0:00:09]} 18. Bxg7 {[%emt 0:01:10]} Kxg7 {[%emt 0:00:02]} 19. Rac1 {[%emt 0:04:08]} Re7 {[%emt 0:09:35]} 20. Bf3 {[%emt 0:02:19]} Rd8 {[%emt 0:00:35]} 21. Qc3+ {[%emt 0:04:26]} Kg8 {[%emt 0:03:42]} 22. Rc2 {[%emt 0:02:55]} Rdd7 {[%emt 0:08:58]} 23. b4 {[%emt 0:02:16]} Re5 {[%emt 0:00:36]} 24. Rcd2 {[%emt 0:02:22]} Rde7 {[%emt 0:00:26]} 25. Rd3 {[%emt 0:01:53]} Bc8 {[%emt 0:00:40]} 26. Rd4 {[%emt 0:03:12]} Bf5 {[%emt 0:01:23]} 27. Qd2 {[%emt 0:02:48]} Be4 {[%emt 0:04:01]} 28. Bxe4 {[%emt 0:03:51]} Rxe4 {[%emt 0:00:02]} 29. Rxe4 {[%emt 0:01:42]} Rxe4 {[%emt 0:00:02]} 30. Rc1 {[%emt 0:03:27]} Qe5 {[%emt 0:02:06]} 31. Qc3 {[%emt 0:01:17]} Qd6 {[%emt 0:05:43]} 32. Qc5 {[%emt 0:02:06]} Re5 {[%emt 0:01:22]} 33. Qxd6 {[%emt 0:04:58]} cxd6 {[%emt 0:00:01]} 34. Rc6 {[%emt 0:00:24]} Rxd5 {[%emt 0:00:01]} 35. Rxa6 {[%emt 0:00:49]} Rd1+ {[%emt 0:00:06]} 36. Kh2 {[%emt 0:00:06]} Kg7 {[%emt 0:00:51]} 37. Ra5 {[%emt 0:01:03]} Rd3 {[%emt 0:00:06]} 38. Rxb5 {[%emt 0:00:22]} Rxa3 {[%emt 0:00:02]} 39. Rd5 {[%emt 0:02:20]} Ra6 {[%emt 0:00:15]} 40. Kg3 {[%emt 0:02:50]} Kf6 {[%emt 0:01:57]} 41. Kf4 {[%emt 0:30:51]} Ke6 {[%emt 0:30:19]} 42. Rd2 {[%emt 0:06:25]} Rb6 {[%emt 0:00:00]} 43. Rd4 {[%emt 0:00:00]} d5 {[%emt 0:00:00]} 44. g3 {[%emt 0:00:00]} Kd6 {[%emt 0:00:00]} 45. h4 {[%emt 0:00:00]} Ke6 {[%emt 0:00:00]} 46. f3 {[%emt 0:00:00]} f6 {[%emt 0:00:00]} 47. g4 {[%emt 0:00:00]} Rb7 {[%emt 0:00:00]} 48. g5 {[%emt 0:00:00]} f5 {[%emt 0:00:00]} 49. Ke3 {[%emt 0:00:00]} Ke5 {[%emt 0:00:00]} 50. f4+ {[%emt 0:00:00]} Kd6 {[%emt 0:00:00]} 51. Kd3 {[%emt 0:00:00]} Ra7 {[%emt 0:00:00]} 52. Ke3 {[%emt 0:00:00]} Re7+ {[%emt 0:00:00]} 53. Kd2 {[%emt 0:00:00]} Re4 {[%emt 0:00:00]} 54. Kc3 {[%emt 0:00:13]} Kc6 {[%emt 0:00:00]} 55. Kd3 {[%emt 0:01:40]} Re1 {[%emt 0:00:00]} 56. Kc3 {[%emt 0:00:40]} Rc1+ {[%emt 0:00:00]} 57. Kd2 {[%emt 0:01:09]} Rh1 {[%emt 0:00:00]} 58. Ke3 {[%emt 0:02:17]} Rh3+ {[%emt 0:00:00]} 59. Kf2 {[%emt 0:00:26]} Rxh4 {[%emt 0:00:00]} 60. Kg3 {[%emt 0:00:15]} Rh1 {[%emt 0:00:12]} 61. Kf2 {[%emt 0:01:23]} Rb1 {[%emt 0:02:26]} 62. Ke3 {[%emt 0:02:02]} Re1+ {[%emt 0:00:11]} 63. Kd3 {[%emt 0:00:51]} Rh1 {[%emt 0:02:41]} 64. Ke3 {[%emt 0:00:44]} Rh3+ {[%emt 0:00:19]} 65. Ke2 {[%emt 0:00:35]} h6 {[%emt 0:01:17]} 66. gxh6 {[%emt 0:01:42]} Rxh6 {[%emt 0:00:01]} 67. Rd1 {[%emt 0:01:08]} Rh4 {[%emt 0:01:32]} 68. Ke3 {[%emt 0:00:52]} Kd6 {[%emt 0:01:07]} 69. Kf3 {[%emt 0:02:48]} Rh3+ {[%emt 0:01:21]} 70. Ke2 {[%emt 0:00:16]} Rb3 {[%emt 0:01:59]} 71. Rd4 {[%emt 0:01:54]} Rb1 {[%emt 0:01:51]} 72. Kf2 {[%emt 0:00:40]} Rc1 {[%emt 0:01:01]} 73. Ke2 {[%emt 0:00:20]} Rc8 {[%emt 0:00:49]} 74. Ke3 {[%emt 0:01:22]} Re8+ {[%emt 0:00:13]} 75. Kd2 {[%emt 0:00:33]} Re4 {[%emt 0:00:56]} 76. Kd3 {[%emt 0:00:17]} Re1 {[%emt 0:00:09]} 77. Kd2 {[%emt 0:00:08]} Rg1 {[%emt 0:00:11]} 78. Rd3 {[%emt 0:00:59]} g5 {[%emt 0:00:41]} 79. fxg5 {[%emt 0:00:31]} Rxg5 {[%emt 0:00:01]} 80. b5 {[%emt 0:01:53]} Rg2+ {[%emt 0:01:34]} 81. Kc1 {[%emt 0:00:27]} Kc5 {[%emt 0:01:16]} 82. b6 {[%emt 0:00:14]} Rg7 {[%emt 0:00:44]} 83. Rf3 {[%emt 0:00:21]} Rf7 {[%emt 0:00:43]} 84. b7 {[%emt 0:00:09]} Rxb7 {[%emt 0:00:06]} 85. Rxf5 {[%emt 0:00:07]} Kc4 {[%emt 0:00:02]} 86. Kc2 {[%emt 0:01:29]} Rh7 {[%emt 0:00:01]} 87. Rf3 {[%emt 0:01:09]} Rh2+ {[%emt 0:00:05]} 88. Kd1 {[%emt 0:00:13]} d4 {[%emt 0:00:03]} 89. Rg3 {[%emt 0:00:11]} Ra2 {[%emt 0:00:04]} 90. Rh3 {[%emt 0:00:25]} Rb2 {[%emt 0:02:10]} 91. Rg3 {[%emt 0:00:10]} d3 {[%emt 0:00:17]} 92. Rg8 {[%emt 0:00:12]} Kc3 {[%emt 0:00:04]} 93. Rc8+ {[%emt 0:00:11]} Kd4 {[%emt 0:00:01]} 94. Rd8+ {[%emt 0:00:07]} Kc3 {[%emt 0:00:04]} 95. Rc8+ {[%emt 0:00:05]} Kd4 {[%emt 0:00:02]} 96. Rd8+ {[%emt 0:00:03]} 1/2-1/2

[Event "Netanya Open 2019"]
[Site "Netanya"]
[Date "2019.06.24"]
[Round "2.21"]
[White "Flom, Gabriel"]
[Black "Aizenberg, Benny"]
[Result "1-0"]
[ECO "E60"]
[WhiteElo "2480"]
[BlackElo "2156"]
[Annotator "ChessBase"]
[PlyCount "77"]
[EventDate "2019.06.23"]
[EventType "swiss"]
[EventCountry "ISR"]
[SourceTitle "playchess.com"]
[Source "ChessBase"]
[SourceQuality "1"]
[TimeControl "40/5400+30:1800+30"]

1. d4 {[%emt 0:00:45]} Nf6 {[%emt 0:00:00]} 2. Nf3 {[%emt 0:00:03]} g6 {[%emt 0:00:00]} 3. g3 {[%emt 0:02:17]} Bg7 {[%emt 0:00:05]} 4. Bg2 {[%emt 0:00:02]} O-O {[%emt 0:01:07]} 5. O-O {[%emt 0:03:28]} c5 {[%emt 0:00:24]} 6. c4 {[%emt 0:03:10]} d6 {[%emt 0:01:30]} 7. b3 {[%emt 0:02:41]} Nc6 {[%emt 0:03:56]} 8. Bb2 {[%emt 0:00:42]} cxd4 {[%emt 0:02:30]} 9. Nxd4 {[%emt 0:00:37]} Bd7 {[%emt 0:00:26]} 10. e3 {[%emt 0:05:39]} Qc8 {[%emt 0:01:44]} 11. Re1 {[%emt 0:01:53]} Rb8 {[%emt 0:03:49]} 12. Nc3 {[%emt 0:01:02]} Ne5 {[%emt 0:02:55]} 13. Rc1 {[%emt 0:03:03]} a6 {[%emt 0:07:13]} 14. Qd2 {[%emt 0:10:31]} Bh3 {[%emt 0:06:04]} 15. Bh1 {[%emt 0:00:52]} Nfd7 {[%emt 0:02:07]} 16. Nd5 {[%emt 0:11:32]} Re8 {[%emt 0:04:01]} 17. Nf4 {[%emt 0:01:32]} Nc5 {[%emt 0:06:15]} 18. b4 {[%emt 0:00:12]} Na4 {[%emt 0:00:18]} 19. Ba1 {[%emt 0:00:02]} Bd7 {[%emt 0:06:00]} 20. Qc2 {[%emt 0:11:29]} b6 {[%emt 0:28:14]} 21. Qb3 {[%emt 0:01:33]} Qc7 {[%emt 0:07:32]} 22. Nd5 {[%emt 0:03:18]} Qa7 {[%emt 0:00:23]} 23. f4 {[%emt 0:01:08]} Ng4 {[%emt 0:00:15]} 24. h3 {[%emt 0:00:46]} Nf6 {[%emt 0:03:19]} 25. Nxf6+ {[%emt 0:00:23]} Bxf6 {[%emt 0:06:20]} 26. Nc6 {[%emt 0:00:00]} Bxc6 {[%emt 0:00:31]} 27. Bxc6 {[%emt 0:00:00]} b5 {[%emt 0:00:46]} 28. Bxe8 {[%emt 0:00:29]} Rxe8 {[%emt 0:00:01]} 29. cxb5 {[%emt 0:04:57]} axb5 {[%emt 0:00:10]} 30. Bxf6 {[%emt 0:04:17]} exf6 {[%emt 0:00:08]} 31. Qd3 {[%emt 0:00:57]} Qd7 {[%emt 0:00:08]} 32. Kh2 {[%emt 0:01:33]} f5 {[%emt 0:02:31]} 33. e4 {[%emt 0:02:38]} fxe4 {[%emt 0:04:13]} 34. Rxe4 {[%emt 0:00:08]} Ra8 {[%emt 0:00:47]} 35. Qd4 {[%emt 0:03:00]} Nb6 {[%emt 0:00:58]} 36. Rce1 {[%emt 0:00:49]} Rxa2+ {[%emt 0:00:36]} 37. Kg1 {[%emt 0:00:02]} f6 {[%emt 0:00:35]} 38. Qxf6 {[%emt 0:01:31]} Ra8 {[%emt 0:00:19]} 39. Re7 {[%emt 0:00:10]} 1-0

[Event "Netanya Open 2019"]
[Site "Netanya"]
[Date "2019.06.24"]
[Round "2.22"]
[White "Kochavi, Ori"]
[Black "Grinberg, Eyal"]
[Result "0-1"]
[ECO "B51"]
[WhiteElo "2152"]
[BlackElo "2474"]
[Annotator "ChessBase"]
[PlyCount "66"]
[EventDate "2019.06.23"]
[EventType "swiss"]
[EventCountry "ISR"]
[SourceTitle "playchess.com"]
[Source "ChessBase"]
[SourceQuality "1"]
[TimeControl "40/5400+30:1800+30"]

1. e4 {[%emt 0:00:00]} c5 {[%emt 0:00:00]} 2. Nf3 {[%emt 0:00:00]} d6 {[%emt 0:00:01]} 3. Bb5+ {[%emt 0:00:00]} Nd7 {[%emt 0:00:17]} 4. d4 {[%emt 0:00:00]} cxd4 {[%emt 0:00:10]} 5. Qxd4 {[%emt 0:00:00]} a6 {[%emt 0:00:06]} 6. Bxd7+ {[%emt 0:00:00]} Bxd7 {[%emt 0:00:06]} 7. c4 {[%emt 0:00:36]} Nf6 {[%emt 0:00:15]} 8. Nc3 {[%emt 0:00:19]} g6 {[%emt 0:01:06]} 9. O-O {[%emt 0:25:17]} Bg7 {[%emt 0:00:25]} 10. b3 {[%emt 0:14:05]} O-O {[%emt 0:02:14]} 11. Bb2 {[%emt 0:00:14]} b5 {[%emt 0:27:20]} 12. Rfe1 {[%emt 0:08:07]} Ng4 {[%emt 0:08:09]} 13. Qd2 {[%emt 0:06:39]} bxc4 {[%emt 0:01:22]} 14. bxc4 {[%emt 0:00:50]} Rc8 {[%emt 0:18:54]} 15. Nd5 {[%emt 0:01:36]} Bxb2 {[%emt 0:03:24]} 16. Qxb2 {[%emt 0:00:01]} e6 {[%emt 0:00:43]} 17. Ne3 {[%emt 0:03:38]} Nxe3 {[%emt 0:00:57]} 18. Rxe3 {[%emt 0:00:04]} Rxc4 {[%emt 0:00:40]} 19. Rd1 {[%emt 0:02:21]} Qc7 {[%emt 0:02:46]} 20. Red3 {[%emt 0:07:41]} Ba4 {[%emt 0:03:11]} 21. Re1 {[%emt 0:00:13]} Rb8 {[%emt 0:04:34]} 22. Qa3 {[%emt 0:02:54]} Qc5 {[%emt 0:04:29]} 23. Qxc5 {[%emt 0:02:50]} dxc5 {[%emt 0:00:05]} 24. Ne5 {[%emt 0:01:06]} Rxe4 {[%emt 0:01:18]} 25. Rde3 {[%emt 0:01:01]} Rxe3 {[%emt 0:00:28]} 26. fxe3 {[%emt 0:00:13]} Rb2 {[%emt 0:02:52]} 27. Rc1 {[%emt 0:01:01]} Bc2 {[%emt 0:01:06]} 28. a3 {[%emt 0:00:08]} Be4 {[%emt 0:03:39]} 29. Rxc5 {[%emt 0:01:26]} Rxg2+ {[%emt 0:00:08]} 30. Kf1 {[%emt 0:00:01]} Rxh2 {[%emt 0:04:56]} 31. Rc8+ {[%emt 0:00:28]} Kg7 {[%emt 0:00:05]} 32. Rc7 {[%emt 0:00:03]} Rh5 {[%emt 0:00:18]} 33. Rxf7+ {[%emt 0:01:16]} Kg8 {[%emt 0:00:12]} 0-1

[Event "Netanya Open 2019"]
[Site "Netanya"]
[Date "2019.06.24"]
[Round "2.23"]
[White "Levi, Netanel"]
[Black "Mindlin, Alon"]
[Result "1/2-1/2"]
[ECO "C54"]
[WhiteElo "2143"]
[BlackElo "2454"]
[Annotator "ChessBase"]
[PlyCount "69"]
[EventDate "2019.06.23"]
[EventType "swiss"]
[EventCountry "ISR"]
[SourceTitle "playchess.com"]
[Source "ChessBase"]
[SourceQuality "1"]
[TimeControl "40/5400+30:1800+30"]

1. e4 {[%emt 0:00:00]} e5 {[%emt 0:00:00]} 2. Nf3 {[%emt 0:00:00]} Nc6 {[%emt 0:00:00]} 3. Bc4 {[%emt 0:00:00]} Bc5 {[%emt 0:00:06]} 4. c3 {[%emt 0:00:11]} Nf6 {[%emt 0:00:07]} 5. d3 {[%emt 0:00:04]} a6 {[%emt 0:01:24]} 6. Nbd2 {[%emt 0:00:39]} Ba7 {[%emt 0:00:25]} 7. O-O {[%emt 0:00:23]} d6 {[%emt 0:01:44]} 8. Bb3 {[%emt 0:02:53]} Ne7 {[%emt 0:05:46]} 9. Re1 {[%emt 0:05:21]} Ng6 {[%emt 0:01:52]} 10. Nf1 {[%emt 0:01:52]} O-O {[%emt 0:00:09]} 11. Ng3 {[%emt 0:00:54]} h6 {[%emt 0:00:10]} 12. h3 {[%emt 0:00:33]} Re8 {[%emt 0:02:14]} 13. d4 {[%emt 0:00:29]} c6 {[%emt 0:12:43]} 14. Be3 {[%emt 0:00:16]} Qc7 {[%emt 0:05:52]} 15. Qc1 {[%emt 0:00:10]} Kh7 {[%emt 0:10:27]} 16. Nf5 {[%emt 0:02:27]} Ng8 {[%emt 0:14:31]} 17. Bxf7 {[%emt 0:02:00]} Qxf7 {[%emt 0:02:06]} 18. Nxd6 {[%emt 0:00:31]} Qe7 {[%emt 0:01:47]} 19. Nxe8 {[%emt 0:01:29]} Qxe8 {[%emt 0:00:20]} 20. dxe5 {[%emt 0:00:14]} Bb8 {[%emt 0:00:28]} 21. Qc2 {[%emt 0:14:05]} Qf7 {[%emt 0:01:36]} 22. Qe2 {[%emt 0:06:14]} Nxe5 {[%emt 0:01:09]} 23. Nxe5 {[%emt 0:03:26]} Bxe5 {[%emt 0:00:01]} 24. Rf1 {[%emt 0:01:57]} Bc7 {[%emt 0:04:16]} 25. f4 {[%emt 0:05:58]} Nf6 {[%emt 0:01:57]} 26. Qf3 {[%emt 0:02:52]} Qg6 {[%emt 0:03:25]} 27. Rae1 {[%emt 0:05:48]} Bd7 {[%emt 0:07:07]} 28. e5 {[%emt 0:03:36]} Nd5 {[%emt 0:01:45]} 29. f5 {[%emt 0:01:38]} Bxf5 {[%emt 0:00:59]} 30. Qxf5 {[%emt 0:00:44]} Nxe3 {[%emt 0:01:17]} 31. Rxe3 {[%emt 0:02:44]} Bb6 {[%emt 0:00:23]} 32. Qxg6+ {[%emt 0:04:08]} Kxg6 {[%emt 0:00:01]} 33. Rff3 {[%emt 0:00:07]} Rd8 {[%emt 0:02:38]} 34. e6 {[%emt 0:33:17]} Bxe3+ 35. Rxe3 1/2-1/2

[Event "Netanya Open 2019"]
[Site "Netanya"]
[Date "2019.06.24"]
[Round "2.24"]
[White "Abergel, Thal"]
[Black "Guz, Ari"]
[Result "1-0"]
[ECO "A34"]
[WhiteElo "2450"]
[BlackElo "2151"]
[Annotator "ChessBase"]
[PlyCount "75"]
[EventDate "2019.06.23"]
[EventType "swiss"]
[EventCountry "ISR"]
[SourceTitle "playchess.com"]
[Source "ChessBase"]
[SourceQuality "1"]
[TimeControl "40/5400+30:1800+30"]

1. Nf3 {[%emt 0:00:00]} c5 {[%emt 0:00:25]} 2. c4 {[%emt 0:00:12]} Nc6 {[%emt 0:00:22]} 3. Nc3 {[%emt 0:01:04]} Nf6 {[%emt 0:01:26]} 4. g3 {[%emt 0:00:59]} e6 {[%emt 0:04:48]} 5. Bg2 {[%emt 0:01:05]} d5 {[%emt 0:04:34]} 6. cxd5 {[%emt 0:00:43]} Nxd5 {[%emt 0:00:34]} 7. O-O {[%emt 0:04:02]} Be7 {[%emt 0:02:22]} 8. d4 {[%emt 0:04:04]} Nxc3 {[%emt 0:08:57]} 9. bxc3 {[%emt 0:00:07]} O-O {[%emt 0:00:21]} 10. e3 {[%emt 0:08:13]} Qc7 {[%emt 0:07:29]} 11. Qe2 {[%emt 0:03:17]} b6 {[%emt 0:05:30]} 12. Rd1 {[%emt 0:01:43]} Bb7 {[%emt 0:06:38]} 13. Bb2 {[%emt 0:01:58]} Rac8 {[%emt 0:05:13]} 14. e4 {[%emt 0:03:23]} Bd6 {[%emt 0:05:50]} 15. d5 {[%emt 0:03:02]} exd5 {[%emt 0:01:23]} 16. exd5 {[%emt 0:00:07]} Rce8 {[%emt 0:03:11]} 17. Qc2 {[%emt 0:00:33]} Ne7 {[%emt 0:00:46]} 18. Ng5 {[%emt 0:03:44]} Ng6 {[%emt 0:02:01]} 19. c4 {[%emt 0:00:43]} h6 {[%emt 0:18:58]} 20. Ne4 {[%emt 0:07:53]} Be5 {[%emt 0:00:30]} 21. f4 {[%emt 0:01:27]} Bxb2 {[%emt 0:00:16]} 22. Qxb2 {[%emt 0:00:04]} Qd7 {[%emt 0:05:59]} 23. a4 {[%emt 0:03:46]} Ba6 {[%emt 0:00:53]} 24. Qc3 {[%emt 0:00:41]} f5 {[%emt 0:02:00]} 25. Nf2 {[%emt 0:00:42]} Qd6 {[%emt 0:01:28]} 26. Qb3 {[%emt 0:05:42]} Re7 {[%emt 0:01:52]} 27. a5 {[%emt 0:03:41]} b5 {[%emt 0:00:59]} 28. cxb5 {[%emt 0:01:32]} Rb7 {[%emt 0:00:19]} 29. Re1 {[%emt 0:02:31]} Rxb5 {[%emt 0:01:13]} 30. Qc3 {[%emt 0:02:12]} Bc8 {[%emt 0:02:59]} 31. Bf1 {[%emt 0:05:11]} Rb7 {[%emt 0:00:22]} 32. Nd3 {[%emt 0:07:36]} Rc7 {[%emt 0:00:27]} 33. Bg2 {[%emt 0:06:31]} Ne7 {[%emt 0:02:06]} 34. Rac1 {[%emt 0:07:28]} Kh7 {[%emt 0:00:53]} 35. Qe5 {[%emt 0:00:45]} Rd8 {[%emt 0:00:13]} 36. Qxd6 {[%emt 0:00:00]} Rxd6 {[%emt 0:00:00]} 37. Rxc5 {[%emt 0:00:00]} Rxc5 {[%emt 0:00:00]} 38. Nxc5 {[%emt 0:00:00]} 1-0

[Event "Netanya Open 2019"]
[Site "Netanya"]
[Date "2019.06.24"]
[Round "2.25"]
[White "Kantsler, Boris"]
[Black "Hoffmann, Yair"]
[Result "1/2-1/2"]
[ECO "D46"]
[WhiteElo "2420"]
[BlackElo "2140"]
[Annotator "NA"]
[PlyCount "106"]
[EventDate "2019.06.23"]
[EventType "swiss"]
[EventCountry "ISR"]
[SourceTitle "playchess.com"]
[Source "ChessBase"]
[SourceQuality "1"]
[TimeControl "40/5400+30:1800+30"]

1. d4 {[%emt 0:00:00]} d5 {[%emt 0:00:00]} 2. c4 {[%emt 0:00:06]} c6 {[%emt 0:00:12]} 3. Nf3 {[%emt 0:00:00]} Nf6 {[%emt 0:00:14]} 4. Nc3 {[%emt 0:00:00]} e6 {[%emt 0:00:21]} 5. e3 {[%emt 0:00:00]} Nbd7 {[%emt 0:00:36]} 6. Qc2 {[%emt 0:00:00]} Bd6 {[%emt 0:01:02]} 7. Bd3 {[%emt 0:00:45]} O-O {[%emt 0:01:03]} 8. O-O {[%emt 0:00:02]} dxc4 {[%emt 0:12:25]} 9. Bxc4 {[%emt 0:00:04]} e5 {[%emt 0:00:25]} 10. Bd2 {[%emt 0:02:51]} Qe7 {[%emt 0:03:45]} 11. Bb3 {[%emt 0:00:31]} b6 {[%emt 0:14:07]} 12. Ng5 {[%emt 0:14:52]} Ba6 {[%emt 0:05:25]} 13. Rfe1 {[%emt 0:01:12]} Rac8 {[%emt 0:01:06]} 14. Qf5 {[%emt 0:10:09]} h6 {[%emt 0:03:39]} 15. Nge4 {[%emt 0:08:00]} Nxe4 {[%emt 0:01:59]} 16. Nxe4 {[%emt 0:00:13]} Bd3 {[%emt 0:03:44]} 17. Nf6+ {[%emt 0:04:16]} Nxf6 {[%emt 0:00:24]} 18. Qxd3 {[%emt 0:00:04]} e4 {[%emt 0:00:57]} 19. Qe2 {[%emt 0:01:33]} Nd5 {[%emt 0:03:42]} 20. Rac1 {[%emt 0:05:27]} Nb4 {[%emt 0:04:05]} 21. Bxb4 {[%emt 0:01:33]} Bxb4 {[%emt 0:00:38]} 22. Red1 {[%emt 0:00:09]} Bd6 {[%emt 0:06:06]} 23. Rc2 {[%emt 0:04:45]} Kh7 {[%emt 0:03:14]} 24. Rdc1 {[%emt 0:02:41]} c5 {[%emt 0:00:35]} 25. Rd1 {[%emt 0:12:22]} Rcd8 {[%emt 0:06:51]} 26. Rcd2 {[%emt 0:06:46]} f5 {[%emt 0:08:18]} 27. dxc5 {[%emt 0:01:45]} Bxc5 {[%emt 0:00:09]} 28. g3 {[%emt 0:00:13]} Bd6 {[%emt 0:04:58]} 29. Qb5 {[%emt 0:02:18]} Bc5 {[%emt 0:02:24]} 30. Rd7 {[%emt 0:05:17]} a6 {[%emt 0:01:05]} 31. Qc6 {[%emt 0:00:52]} Rxd7 {[%emt 0:00:16]} 32. Rxd7 {[%emt 0:02:36]} Qf6 {[%emt 0:00:09]} 33. Qb7 {[%emt 0:02:09]} Qxb2 {[%emt 0:00:59]} 34. Rf7 {[%emt 0:03:22]} Qe5 {[%emt 0:05:25]} 35. Rxf8 {[%emt 0:04:40]} Bxf8 {[%emt 0:00:05]} 36. Qxa6 {[%emt 0:02:32]} Qf6 {[%emt 0:04:19]} 37. Qc4 {[%emt 0:00:19]} Qa1+ {[%emt 0:00:32]} 38. Kg2 {[%emt 0:00:02]} Qf6 {[%emt 0:00:10]} 39. h4 {[%emt 0:00:48]} h5 {[%emt 0:01:52]} 40. Qg8+ {[%emt 0:00:08]} Kg6 {[%emt 0:00:08]} 41. Qh8 {[%emt 0:30:58]} Qd8 {[%emt 0:32:06]} 42. Bg8 {[%emt 0:03:05]} Be7 {[%emt 0:00:58]} 43. Qh7+ {[%emt 0:00:58]} Kf6 {[%emt 0:00:10]} 44. Bb3 {[%emt 0:00:04]} Qe8 {[%emt 0:00:00]} 45. Bd1 {[%emt 0:00:00]} g6 {[%emt 0:00:00]} 46. Qh6 {[%emt 0:00:00]} Qf8 {[%emt 0:00:00]} 47. Qf4 {[%emt 0:00:00]} Qd8 {[%emt 0:00:00]} 48. Bb3 {[%emt 0:00:00]} Qd6 {[%emt 0:00:00]} 49. Qh6 {[%emt 0:00:00]} Qd8 {[%emt 0:00:00]} 50. Bc4 {[%emt 0:00:00]} Qf8 {[%emt 0:00:00]} 51. Qf4 {[%emt 0:00:00]} Bd6 {[%emt 0:00:00]} 52. Qg5+ {[%emt 0:00:00]} Kg7 {[%emt 0:00:00]} 53. Be2 {[%emt 0:00:00]} Be7 {[%emt 0:05:52]} 1/2-1/2

[Event "Netanya Open 2019"]
[Site "Netanya"]
[Date "2019.06.24"]
[Round "2.26"]
[White "Birnboim, Nathan"]
[Black "Zalkind, Konstantin"]
[Result "1-0"]
[ECO "D26"]
[WhiteElo "2379"]
[BlackElo "2130"]
[Annotator "NA"]
[PlyCount "69"]
[EventDate "2019.06.23"]
[EventType "swiss"]
[EventCountry "ISR"]
[SourceTitle "playchess.com"]
[Source "ChessBase"]
[SourceQuality "1"]
[TimeControl "40/5400+30:1800+30"]

1. d4 {[%emt 0:00:00]} d5 {[%emt 0:00:02]} 2. c4 {[%emt 0:00:00]} dxc4 {[%emt 0:00:05]} 3. e3 {[%emt 0:00:38]} Nf6 {[%emt 0:00:10]} 4. Bxc4 {[%emt 0:00:20]} e6 {[%emt 0:00:08]} 5. Nf3 {[%emt 0:03:41]} a6 {[%emt 0:00:11]} 6. O-O {[%emt 0:00:41]} b5 {[%emt 0:02:47]} 7. Be2 {[%emt 0:00:59]} Bb7 {[%emt 0:00:25]} 8. a4 {[%emt 0:00:13]} b4 {[%emt 0:00:24]} 9. Nbd2 {[%emt 0:01:03]} Nbd7 {[%emt 0:00:25]} 10. Nc4 {[%emt 0:03:49]} Be7 {[%emt 0:02:11]} 11. a5 {[%emt 0:13:12]} O-O {[%emt 0:00:48]} 12. Bd2 {[%emt 0:01:39]} c5 {[%emt 0:02:15]} 13. Qa4 {[%emt 0:01:57]} Rc8 {[%emt 0:16:07]} 14. Rfc1 {[%emt 0:02:51]} Ne4 {[%emt 0:13:22]} 15. Be1 {[%emt 0:06:29]} Ndf6 {[%emt 0:02:53]} 16. Nb6 {[%emt 0:03:26]} Rc7 {[%emt 0:00:51]} 17. Qd1 {[%emt 0:05:14]} Nd7 {[%emt 0:10:00]} 18. dxc5 {[%emt 0:10:41]} Bxc5 {[%emt 0:00:42]} 19. Nxd7 {[%emt 0:00:39]} Rxd7 {[%emt 0:02:06]} 20. Qc2 {[%emt 0:02:35]} Qa8 {[%emt 0:04:46]} 21. Ne5 {[%emt 0:08:09]} Rc7 {[%emt 0:02:30]} 22. Qa4 {[%emt 0:01:55]} Rfc8 {[%emt 0:37:52]} 23. Nd3 {[%emt 0:02:41]} h6 {[%emt 0:00:00]} 24. Bxb4 {[%emt 0:02:23]} Bxb4 {[%emt 0:00:00]} 25. Qxb4 {[%emt 0:01:10]} Rxc1+ {[%emt 0:00:00]} 26. Rxc1 {[%emt 0:00:09]} Rxc1+ {[%emt 0:00:00]} 27. Nxc1 {[%emt 0:00:08]} Qc8 {[%emt 0:00:00]} 28. Nd3 {[%emt 0:07:54]} Bd5 {[%emt 0:00:00]} 29. Qe1 {[%emt 0:02:33]} Bc4 {[%emt 0:00:00]} 30. Qc1 {[%emt 0:01:06]} Nd6 {[%emt 0:00:00]} 31. b3 {[%emt 0:04:31]} Bb5 {[%emt 0:00:00]} 32. Qxc8+ {[%emt 0:00:25]} Nxc8 {[%emt 0:00:00]} 33. Kf1 {[%emt 0:00:25]} Nd6 {[%emt 0:00:00]} 34. Nc5 {[%emt 0:00:51]} Kf8 {[%emt 0:00:00]} 35. Nxa6 {[%emt 0:01:05]} 1-0